Cogmind - Beta 13 @@@ ROGUE MODE // 2024.04.07 @ 14:05:04 Player: weedlord420 Result: Destroyed by Y-45 Defender with Heavy Assault Rifle Performance ------------- Evolutions (0) 0 Regions Visited (2) 400 Robots Destroyed (34) 170 Value Destroyed (723) 723 Prototype IDs (0) 0 Alien Tech Used (0) 0 Bonus (0) 0 TOTAL SCORE: 1293 Bonus ------- None Cogmind --------- Core Integrity 0/250 Matter 255/300 Energy 79/100 System Corruption 0% Temperature Cool (61) Movement Walking (120) Location -10/Mines Parts ------- > --- POWER (1) -------- (None) > --- PROPULSION (2) --- Aluminum Leg > --- UTILITY (2) ------ Small Storage Unit > --- WEAPON (2) ------- Particle Gun Light Assault Rifle > --- INVENTORY (8) ---- Light Nuclear Core Terrain Scan Processor Hacking Suite Light Cannon Light Cannon Peak State ------------ > --- POWER ------------ Ion Engine > --- PROPULSION ------- Aluminum Leg Aluminum Leg > --- UTILITY ---------- Small Storage Unit Improved Terrain Scanner > --- WEAPON ----------- Particle Gun Assault Rifle > --- INVENTORY -------- Ion Engine Aluminum Leg Aluminum Leg Terrain Scan Processor Propulsion Shielding Hacking Suite Assault Rifle Light Assault Rifle [Rating: 11] Favorites ----------- Power Ion Engine Engine Ion Engine Propulsion Aluminum Leg Leg Aluminum Leg Utility Small Storage Unit Device Improved Terrain Scanner Storage Small Storage Unit Protection Propulsion Shielding Weapon Particle Gun Energy Gun Particle Gun Ballistic Gun Assault Rifle Launcher Grenade Launcher Build | -11 -10 -10 ------- Run | Yrd Mat Min Slots Evolved . | . . . Power . | . . . Propulsion . | . . . Utility . | . . . Weapon . | . . . Parts Attached 39 | 7 19 13 Power 3 | 1 1 1 Engine 3 | 1 1 1 Core . | . . . Reactor . | . . . Propulsion 10 | 2 4 4 Treads . | . . . Leg 10 | 2 4 4 Wheel . | . . . Hover . | . . . Flight . | . . . Utility 5 | 2 2 1 Device 3 | 1 2 . Storage 1 | 1 . . Processor . | . . . Hackware . | . . . Protection 1 | . . 1 Artifact . | . . . Weapon 21 | 2 12 7 Energy Gun 7 | 1 4 2 Energy Cannon . | . . . Ballistic Gun 10 | 1 6 3 Ballistic Cannon . | . . . Launcher 4 | . 2 2 Special Weapon . | . . . Impact Weapon . | . . . Slashing Weapon . | . . . Piercing Weapon . | . . . Special Melee Weapon . | . . . Unidentified Prototypes . | . . . Parts Lost 9 | . 1 8 Power 3 | . 1 2 Propulsion 3 | . . 3 Utility 2 | . . 2 Weapon 1 | . . 1 Highest Loss Streak 6 | . 1 6 To Critical Strikes . | . . . Average Slot Usage (%) 99 | . 99 99 Engine 13 | . 13 13 Leg 27 | . 28 27 Device 9 | . 13 . Storage 14 | . 14 14 Protection 4 | . . 12 Energy Gun 9 | . 13 3 Ballistic Gun 15 | . 14 17 Launcher 2 | . . 7 Naked Turns . | . . . Heaviest Build 17 | 13 16 17 Greatest Support 20 | 20 20 20 Greatest Overweight (x) . | . . . Average Overweight (x) . | . . . Largest Inventory Capacity 8 | 8 8 8 Average Capacity 7 | 7 8 8 Most Carried 8 | 5 8 8 Average Carried 6 | 1 6 7 Final Capacity 8 | 8 8 8 Final Carried 8 | 1 8 5 Class Distribution -------------------- 69% | Scavenger-Mutant 30% | Mutant Dominant Class ---------------- Scavenger-Mutant | -10/Materials Scavenger-Mutant | -10/Mines Resources | -11 -10 -10 ----------- Run | Yrd Mat Min Matter Collected 1000 | 195 354 451 Remotely . | . . . Salvage Created 1065 | 11 754 300 Parts 68 | 2 49 17 Haulers Intercepted 2 | . 2 . Recyclers Shooed 5 | . 3 2 Parts Field Recycled . | . . . Retrieved Matter . | . . . Parts Self-Destructed . | . . . Prevented . | . . . Kills | -11 -10 -10 ------- Run | Yrd Mat Min Combat Hostiles Destroyed 26 | . 12 14 Guns 21 | . 12 9 AOE 5 | . . 5 Classes Destroyed 11 | 1 8 2 Worker 2 | . 1 1 Builder 1 | . 1 . Tunneler 1 | 1 . . Hauler 2 | . 2 . Recycler 4 | . 3 1 Operator 1 | . 1 . Watcher 2 | . 2 . Swarmer 8 | . 5 3 Grunt 12 | . 7 5 Demolisher 1 | . . 1 Assembled 5 | . . 5 Best Kill Streak 5 | 1 5 4 Combat Bots Only 4 | . 4 3 Max Kills in Single Turn 2 | 1 2 1 Gunslinging . | . . . Exploded 1 | . . 1 Melee . | . . . Uniques/NPCs Destroyed . | . . . Combat | -11 -10 -10 -------- Run | Yrd Mat Min Hostile Shots Fired 134 | . 64 70 Missed 30 | . 14 16 Damage Taken 1476 | . 534 942 Core 255 | . 89 166 Absorbed by Shields . | . . . Redirected to Shielding 52 | . . 52 Regen/Repaired (Parts) 16 | . 16 . Core Remaining (%) 100 | 100 . . Volleys Fired 126 | 3 78 45 Largest 2 | 2 2 2 Hottest 85 | 60 85 85 Shots Fired 248 | 6 152 90 Gun 231 | 6 150 75 Cannon . | . . . Launcher 17 | . 2 15 Special . | . . . Kinetic 153 | 3 78 72 Thermal 78 | 3 72 3 Explosive 17 | . 2 15 Electromagnetic . | . . . Robot Hit Streak 20 | 2 20 9 Robot Miss Streak 4 | 1 4 4 Penetration Max . | . . . Secondary Targets 4 | . 2 2 Max Gunslinging Chain 1 | . 1 1 Shots Hit Robots 146 | 2 92 52 Core Hits 66 | 1 35 30 Critical Kills . | . . . Critical Parts Destroyed . | . . . Critical Strikes 3 | . 3 . Burn 3 | . 3 . Melee Attacks . | . . . Impact . | . . . Slashing . | . . . Piercing . | . . . Sneak Attacks . | . . . Combat Hostiles . | . . . Follow-up Attacks . | . . . Damage Inflicted 2226 | 21 1092 1113 Guns 1585 | 21 1092 472 Cannons . | . . . Explosions 641 | . . 641 Melee . | . . . Ramming . | . . . Kinetic 896 | 10 457 429 Thermal 689 | 11 635 43 Explosive 641 | . . 641 Electromagnetic . | . . . Impact . | . . . Slashing . | . . . Piercing . | . . . Highest Corruption . | . . . Average Corruption . | . . . Corruption Purged . | . . . Corruption Blocked . | . . . Overload Shots . | . . . Overflow Damage . | . . . Projectiles . | . . . Explosions . | . . . Melee . | . . . Knockbacks . | . . . Impact . | . . . Kinetic . | . . . Secondary . | . . . Self-Inflicted Damage 61 | . . 61 Shots 3 | . . 3 Rammed . | . . . Targets Rammed . | . . . Kicked . | . . . Crushed . | . . . Highest Temperature 168 | 20 168 67 Average Temperature 52 | 15 59 22 Received Heat Transfer 382 | . 201 181 Siege Activations . | . . . Robots Corrupted . | . . . Combat Hostiles . | . . . Parts Fried . | . . . Impact Corruptions . | . . . Robots Melted . | . . . Combat Hostiles . | . . . Parts Melted 4 | . 4 . Heat Transferred 1822 | 25 1686 111 Parts Sabotaged . | . . . Parts Stolen . | . . . Parts Stripped . | . . . Power Chain Reactions . | . . . Alert | -11 -10 -10 ------- Run | Yrd Mat Min Peak Influence 253 | 5 160 253 Initial 62 | . 3 62 Average 89 | 2 85 106 Maximum Alert Level 1 | . . 1 Low Security (%) 98 | 100 100 96 Level 1 1 | . . 3 Level 2 . | . . . Level 3 . | . . . Level 4 . | . . . Level 5 . | . . . High Security . | . . . Max Security . | . . . Squads Dispatched 4 | . 4 . Investigation 2 | . 2 . Extermination . | . . . Reinforcement 2 | . 2 . Assault . | . . . Garrison . | . . . Intercept . | . . . Searches Triggered . | . . . Construction Impeded . | . . . Haulers Reinforced . | . . . Active Scanning Responses . | . . . Cargo Convoy Interrupts . | . . . Stealth | -11 -10 -10 --------- Run | Yrd Mat Min Distress Signals 1 | . 1 . Communications Jammed . | . . . Distress Signals . | . . . Times Spotted 37 | . 23 14 Peak Tracking Total 4 | . 4 3 Tactical Retreats . | . . . Traps | -11 -10 -10 ------- Run | Yrd Mat Min Traps Triggered 3 | . 3 . Indirectly . | . . . Trap Hack Attempts . | . . . Triggered . | . . . Disarmed . | . . . Reprogrammed . | . . . Reused . | . . . Traps Extracted . | . . . Installed . | . . . Triggered . | . . . Machines | -11 -10 -10 ---------- Run | Yrd Mat Min Machines Disabled 4 | . 2 2 Max in Single Turn 2 | . 1 2 Machines Repaired . | . . . Machines Dismantled . | . . . Machines Sabotaged . | . . . Overloaded Fab Kills . | . . . Hacking | -11 -10 -10 --------- Run | Yrd Mat Min Machines Accessed 3 | . 3 . Terminals 2 | . 2 . Fabricators . | . . . Repair Stations 1 | . 1 . Recycling Units . | . . . Scanalyzers . | . . . Garrison Access . | . . . Total Hacks 7 | . 7 . Successful 7 | . 7 . Failed . | . . . Catastrophic . | . . . Database Lockouts . | . . . Manual . | . . . Terminals 4 | . 4 . Fabricators . | . . . Repair Stations 3 | . 3 . Recycling Units . | . . . Scanalyzers . | . . . Garrison Access . | . . . Terminal Hacks 4 | . 4 . Branch Access Points 1 | . 1 . Locate Traps 1 | . 1 . Surveillance Status 1 | . 1 . Zone Layout 1 | . 1 . Fabricator Hacks . | . . . Repair Station Hacks 3 | . 3 . Scan Component 2 | . 2 . Repair 1 | . 1 . Recycling Unit Hacks . | . . . Scanalyzer . | . . . Garrison Access Hacks . | . . . Unauthorized Hacks . | . . . Terminals . | . . . Fabricators . | . . . Repair Stations . | . . . Recycling Units . | . . . Scanalyzers . | . . . Garrison Access . | . . . Data Cores Recovered . | . . . Used . | . . . Hacking Detections 3 | . 3 . Full Trace Events 1 | . 1 . Feedback Events . | . . . Feedback Blocked . | . . . Robot Schematics Acquired . | . . . Robots Built . | . . . Authchips . | . . . Time . | . . . Total Robot Build Rating . | . . . Part Schematics Acquired . | . . . Parts Built . | . . . Authchips . | . . . Time . | . . . Total Part Build Rating . | . . . Parts Repaired 1 | . 1 . Time 38 | . 38 . Parts Recycled . | . . . Recycled Matter . | . . . Retrieved Matter . | . . . Retrieved Components . | . . . Parts Scanalyzed . | . . . Part Schematics Acquired . | . . . Parts Damaged . | . . . Bothacking | -11 -10 -10 ------------ Run | Yrd Mat Min Used RIF Installer . | . . . Robots Hacked . | . . . Non-combat . | . . . Combat . | . . . Robot Hacks Applied . | . . . Relay Couplers Released . | . . . Fabnet Peak Effective % . | . . . Robots Rewired . | . . . Allies Hacked . | . . . Hacks Repelled . | . . . Allies | -11 -10 -10 -------- Run | Yrd Mat Min Total Allies . | . . . Largest Group . | . . . Highest-Rated Group . | . . . Highest-Rated Ally . | . . . Total Orders . | . . . Ally Attacks . | . . . Total Damage . | . . . Kills . | . . . Allies Corrupted . | . . . Allies Melted . | . . . Intel | -11 -10 -10 ------- Run | Yrd Mat Min Robot Analysis Total . | . . . Derelict Logs Recovered 2 | . . 2 Drone Launches . | . . . Drone Recoveries . | . . . Exploration | -11 -10 -10 ------------- Run | Yrd Mat Min Turns Passed 2364 | 80 1523 761 Spaces Moved 1192 | 58 693 441 Core 17 | 17 . . Treads . | . . . Legs 1175 | 41 693 441 Wheels . | . . . Hover . | . . . Flight . | . . . Fastest Speed 50 | 50 120 120 Average Speed 119 | 99 120 120 Slowest Speed 120 | 120 120 120 Overloaded Moves . | . . . Propulsion Burnouts . | . . . Robots Hopped . | . . . Cave-ins Triggered . | . . . Exploration Rate (%) 58 | 5 95 74 Regions Visited 2 Branch Regions 1 Pre-discovered Areas . | . . . Known Exits Taken 1 | . 1 . Unknown Exits Taken 1 | 1 . . Scrap Searched 1 | . . 1 Spaces Dug 18 | . . 18 Terrain Destroyed 118 | . 17 101 Melee . | . . . Projectile . | . . . AOE 118 | . 17 101 Terrain Rammed . | . . . Walls Destroyed . | . . . Machines Disabled . | . . . Actions | -11 -10 -10 --------- Run | Yrd Mat Min Total 1899 | 75 1238 586 Wait 505 | . 423 82 Move 1190 | 57 692 441 Hop . | . . . Pick Up 26 | 8 16 2 Fast Attach 6 | . 5 1 Attach 13 | 7 1 5 Detach . | . . . Swap 20 | . 13 7 Drop 13 | . 10 3 Fire 126 | 3 78 45 Melee . | . . . Ram . | . . . Kick . | . . . Crush . | . . . Escape Stasis . | . . . Rewire . | . . . Trap . | . . . Miscellaneous . | . . . Route ------- -11/Scrapyard -10/Materials (discovered 5 exits: [*Mat x3] / *Min / [Sub]) -10/Mines (discovered 2 exits: [*Mat x2]) History --------- Turn | Location | Event 2 | -11/Scrapyard | Discovered new exit (range 16) 81 | -11/Scrapyard | Entered Materials 342 | -10/Materials | Discovered new exit (range 4) 597 | -10/Materials | Build established: Scavenger-Mutant 642 | -10/Materials | Discovered new exit (range 9) 950 | -10/Materials | Discovered new exit (range 15) 1007 | -10/Materials | Discovered new exit (range 7) 1263 | -10/Materials | Identified exit to Mines 1383 | -10/Materials | Discovered new exit (range 16) 1435 | -10/Materials | Repaired Imp. Terrain Scanner 1604 | -10/Materials | Entered Mines 1605 | -10/Mines | Assembled infested the area 1641 | -10/Mines | Discovered new exit (range 12) 1811 | -10/Mines | Core integrity fell below 50% 1817 | -10/Mines | Build established: Mutant 1829 | -10/Mines | Learned 2 Materials zone layouts 1836 | -10/Mines | Learned Materials interactive machine intel 1836 | -10/Mines | Discovered new exit (range 6) 2173 | -10/Mines | Assisted by bots powering up and referring to "LRC-V3" 2197 | -10/Mines | Build established: Scavenger-Mutant 2357 | -10/Mines | Core integrity fell below 20% 2365 | -10/Mines | Destroyed by Y-45 Defender with Heavy Assault Rifle Last Messages --------------- Acquired 60 matter. Acquired 3 matter. Acquired 66 matter. G-34 Mercenary destroyed. [Achievement: Dramatic Entrance] G-47 Trooper destroyed. The unstable cave ceiling collapses. G-47 Trooper destroyed. The unstable cave ceiling collapses. Dropped Lgt. Assault Rifle. Acquired Particle Gun. Acquired 23 matter. The unstable cave ceiling collapses. Acquired 31 matter. K-01 Serf destroyed. Grenade Launcher destroyed. Propulsion Shielding destroyed. Aluminum Leg destroyed. Ion Engine destroyed. Aluminum Leg destroyed. Map ----- +----------------------------------------------------+ | ???## #?????????# #???????????????????? | | ?#?# #?????????###########???????????????????? | | ???# #????###?######?????????????????????????? | | ???## ##### # ##?????????????????????????? | | ????## " ### # ###???????????????????????? | | ?????## ###### ###???????????????????????? | | ?????## % ##???????????????????????? | | ??????# ??????????????????????? | | ??###### ##### <% ???????????????????????? | | ??## #### ## ##### ??????????????????????? | | ??# # ### # # # # ??????????????????????? | | ???# ##### # ## ##?????????????????????????? | | ???# # # #?????????????????????????? | | ??## ## """ #?????????????????????????? | | ??# ###### """ #?????????????????????????? | | #?# ## # """ #?????????????????????????? | | ??## ### # # #?????????????????????????? | | ???# #### ## #?????????????????????????? | | #### ###### #?????????????????????????? | | ## ######????# #?????????????????????????? | | ## #????????##########?????????????????????????? | | ## #??????????##" "#??????????????????????????? | | ## #??????????#]! /]?####?????????????????????? | | #??????????#!! [!## ##????????????????????? | | ## #???????????# # #????????????????????? | | #### #???#?????### @ #????????????????????? | | ???# #?????????# Y ### ??????????????? | | ???# ########### Y ?????????????? | | ???# #????????????? | | ???############# #############????????????? | | ???????????????# ##????????????????????????? | | ???????????????## ##?????????????????????????? | | ????????????????## ###??????????????????????????? | | ????????#????????####????????????????????????????? | | ?????????????????????????????????????????????????? | | ?????????????????????????????????????????????????? | | | | | | | | | | | | | | | | | | | | | | | | | | | | | +----------------------------------------------------+ Best States ------------- Heat Dissipation 25 Energy Generation 10 Energy Capacity 250 Matter Stores 300 Matter Capacity 300 Sight Range 16 Terrain Scan Range 16 Terrain Scan Density 10 Propulsion Shielding 33 Evasion (%) 55 Item Schematics ----------------- None Robot Schematics ------------------ None Fabricated ------------ Nothing Alien Tech Used ----------------- None Achievements -------------- Dramatic Entrance Challenges ------------ None Game ------ Seed CentriumDisruptorStabilizer Manual? 0 Play Time 00:16:48 Cumulative 16.2 hours Start 2024.04.06 @ 16:08:39 End 2024.04.07 @ 14:05:04 Sessions 2 Manual Loads 0 Difficulty Rogue Special Mode None Game No. 38 Rogue 37 Adventurer 1 Explorer 0 Win Type - Total 0 Types 0/0/0/0/0/0/0/0/0 Lore% 8 Gallery% 19 Achievement% 19 Wizard Run 0 Options --------- Layout 1 ASCII 0 Keyboard 0 Movement Mouse Keybinds 0 Fullscreen 2 Font 24/Terminus Map View 50x35 Zoom Use 0% Tactical HUD 0 Map Filters NONE Filters NONE Steam 1 RUN: deb2ac91-caf3-4984-bbb2-e8047d5ffa15